{"text_format":"1","workbook":"xlsx","n_sheets":7,"sheets":["表紙","学生カード","自己採点シート","学習自己点検シート ","単位修得状況確認表（共通教育科目等）","単位修得状況確認表（専門教育科目）","累積グラフ"],"not_rendered":{"charts":11,"images":2,"macros":1,"external_links":0,"defined_names":5,"comments":0,"pivot_tables":0},"unopened":[],"bounds":{"document_bytes":16777216,"sheet_cells":100000,"rows_first":2000,"rows_last":500,"rows_between":2000,"halvings":0,"cell_chars":16384,"cell_head_chars":4096},"cells_cut":0,"cells_raw":0,"read":"whole","date_system":"1900"}

{"sheet":"表紙","index":0,"n_rows":34,"n_cols":2,"rows_kept":34,"cut":false,"hidden":false,"merged":[]}
[]
[]
[]
[]
[]
[]
[]
[]
[]
[]
[]
[null,"鹿児島大学工学部ポートフォリオ"]
[]
[]
[]
[]
[]
[]
[]
[]
[]
[]
[]
[]
[]
[]
[]
[]
[]
[]
[]
[null,"学科："]
[null,"氏名："]
[null,"学籍番号："]

{"sheet":"学生カード","index":1,"n_rows":62,"n_cols":10,"rows_kept":62,"cut":false,"hidden":false,"merged":[[9,0,16,0],[9,8,24,9],[14,5,14,7],[15,5,15,7],[17,0,24,0],[0,0,0,9],[3,0,3,1],[3,8,3,9],[4,6,8,6],[7,1,7,5],[31,0,42,0],[31,8,34,9],[40,6,40,9],[41,6,41,9],[22,5,22,7],[23,5,23,7],[25,0,30,0],[25,1,26,1],[25,2,26,2],[25,3,26,3],[25,4,26,7],[25,8,25,9],[26,8,26,9],[29,1,30,1],[29,2,30,2],[29,3,30,3],[43,0,54,0],[43,8,46,9],[52,6,52,9],[53,6,53,9],[55,0,55,9]]}
["学 生 カ ー ド"]
[]
["平成　　年度入学",null,null,null,null,null,null,null,null,"鹿児島大学工学部"]
[null,null,null,"学科","学籍番号",null,null,"指導教員名","㊞"]
[null,null,null,null,null,null,"男\n・\n女","本　籍"]
["ふりがな"]
["氏　　名",null,null,null,null,null,null,null,null,"都・道・府・県"]
["生年月日","昭和・平成 　　年　 　月　 　日生（　　　歳）"]
[null,"※戸籍記載のとおり",null,null,null,null,null,"※外国人は国籍名"]
["現 住 所",null,null,null,null,null,null,null,"写真貼付\n\nたて　５cm\nよこ　４cm"]
[null,"〒","－"]
[]
[]
[]
[null,null,null,null,"TEL","（　　　　　　　　　　　　）"]
[null,null,null,null,"携帯TEL","（　　　　　　　　　　　　）"]
[]
["住所変更"]
[null,"〒","－"]
[]
[]
[]
[null,null,null,null,"TEL","（　　　　　　　　　　　　）"]
[null,null,null,null,"携帯TEL","（　　　　　　　　　　　　）"]
[]
["履　　歴",null,"年","月","都・道・府・県",null,null,null,"　高等学校卒業等"]
[null,null,null,null,null,null,null,null,"　大学検定合格　"]
[null,null,"年","月"]
[null,null,"年","月"]
[null,null,"年","月"]
[]
["保証人\n（保護者）",null,null,null,null,null,null,null," 続柄"]
[null,"ふりがな"]
[null,"氏　名"]
[]
[]
[null,"住 所","〒","－"]
[]
[]
[]
[null,null,null,null,null,"T E L","（                                     )"]
[null,null,null,null,null,"携帯TEL","（                                     )"]
[]
["緊急時の\n連 絡 先\n（保証人\nとは別）",null,null,null,null,null,null,null," 続柄"]
[null,"ふりがな"]
[null,"氏　名"]
[]
[]
[null,"住 所","〒","－"]
[]
[]
[]
[null,null,null,null,null,"T E L","（                                     )"]
[null,null,null,null,null,"携帯TEL","（                                     )"]
[]
["大 学 側 記 入 欄"]
["　　年　　月　　日"]
["　　年　　月　　日"]
["注　１．本学生カードは２部作成し、１部を指導教員へ、もう１部は指導教員の認印を受けて４月１５日までに"]
["　　　　工学部学生係へ提出すること。"]
["　　２．住所を変更したら必ず工学部学生係へ申し出ること。"]
["　　３．本学生カードの記載情報は履修指導や生活指導の目的のみに使用されます。"]

{"sheet":"自己採点シート","index":2,"n_rows":24,"n_cols":21,"rows_kept":24,"cut":false,"hidden":false,"merged":[[16,2,16,5],[11,2,11,5],[12,2,12,5],[13,2,13,5],[14,2,14,5],[15,2,15,5],[23,2,23,5],[17,2,17,5],[18,2,18,5],[19,2,19,5],[20,2,20,5],[21,2,21,5],[22,2,22,5]]}
[]
[]
[null,"自己採点シート"]
[]
[null,null,null,null,null,null,null,"学籍番号",null,"氏名"]
[]
[null,"学生のみなさんへ"]
[null,null,"今期受講した科目に関して、以下の項目に対して自己採点をしてください。(１０点満点)"]
[]
[]
[]
[null,null,"項目",null,null,null,"2015年度\n前期","2015年度\n後期","2016年度\n前期","2016年度\n後期","2017年度\n前期","2017年度\n後期","2018年度\n前期","2018年度\n後期","2018年度\n前期","2018年度\n後期","2019年度\n前期","2019年度\n後期","2020年度\n前期","2020年度\n後期","卒業時"]
[null,1,"工学に関しての基礎知識\n（物理・化学・数学・情報など）"]
[null,2,"各工学分野での基礎知識\n（専門科目など）"]
[null,3,"人前での発表能力"]
[null,4,"人と話し合ったり議論する能力"]
[null,5,"チームの一員として取り組める（チームワーク）能力"]
[null,6,"英語、その他外国語による表現力"]
[null,7,"読書、講習会への参加、英会話や情報処理学習など大学以外での学習による自己啓発・生涯学習能力"]
[null,8,"社会性や国際感覚が身についているか。"]
[null,9,"倫理観、責任感がみについているか。"]
[null,10]
[null,11]
[null,12]

{"sheet":"学習自己点検シート ","index":3,"n_rows":67,"n_cols":12,"rows_kept":67,"cut":false,"hidden":false,"merged":[[7,2,7,12]]}
[]
[]
[null,"学習自己点検シート"]
[]
[null,null,null,null,null,null,null,null,null,"学籍番号",null,"氏名"]
[]
[null,"学生のみなさんへ"]
[null,null,"学生生活全般に関して自己点検をお願いしています。今期受講した科目に関して、以下の質問項目に答えてください。面談時、指導教員の先生方から回答に対する具体的なアドバイスを受けてください。"]
[]
[]
[null,"回答方法"]
[null,1,"今期の目標は達成できましたか。"]
[]
[]
[]
[]
[null,2,"講義への取り組みは積極的でしたか。また、積極的に取り組むことができなかった講義は具体的に何ですか。"]
[]
[]
[]
[]
[null,3,"講義毎に勉強方法がつかめていますか。"]
[]
[]
[]
[]
[null,4,"それぞれの講義の理解度は自分の目標に達していますか。理解度が足りないと感じている講義は何ですか。"]
[]
[]
[]
[]
[null,5,"平日（試験勉強以外）１日当たりの勉強時間（平均）はどのくらいですか。勉強時間が足りないと感じている講義は何ですか。"]
[]
[]
[]
[]
[null,6,"アルバイトと勉強は両立できましたか。"]
[]
[]
[]
[]
[null,7,"サークル活動と勉強は両立できましたか。"]
[]
[]
[]
[]
[null,8,"卒業後の進路についてどのように考えていますか。"]
[]
[]
[]
[]
[null,9,"その他、アドバイスが必要なことはありますか。"]
[]
[]
[]
[]
[null,10]
[]
[]
[]
[]
[null,11]
[]
[]
[]
[]
[null,12]

{"sheet":"単位修得状況確認表（共通教育科目等）","index":4,"n_rows":43,"n_cols":49,"rows_kept":43,"cut":false,"hidden":false,"merged":[[4,29,4,30],[4,31,4,32],[4,33,4,34],[2,7,2,38],[23,45,36,45],[23,46,30,46],[31,46,36,46],[19,40,22,40],[21,7,21,8],[21,9,21,10],[21,11,21,12],[4,7,4,8],[4,9,4,10],[4,11,4,12],[12,43,14,43],[19,7,19,38],[11,1,15,3],[11,5,11,6],[12,5,12,6],[13,5,13,6],[14,5,14,6],[2,0,3,6],[19,39,22,39],[20,7,20,10],[20,11,20,14],[20,15,20,18],[20,19,20,22],[20,23,20,26],[20,27,20,30],[20,31,20,34],[20,35,20,38],[3,23,3,26],[3,27,3,30],[3,31,3,34],[3,35,3,38],[4,23,4,24],[4,25,4,26],[4,35,4,36],[4,37,4,38],[4,27,4,28],[34,4,34,5],[35,4,35,5],[31,1,35,3],[36,1,36,6],[33,4,33,5],[1,0,1,41],[37,0,37,6],[2,40,5,40],[2,41,5,41],[27,4,27,5],[29,4,29,5],[28,4,28,5],[31,4,31,5],[6,0,16,0],[17,0,17,6],[7,4,7,6],[8,4,8,6],[26,4,26,5],[19,0,20,6],[23,0,36,0],[11,4,12,4],[13,4,15,4],[15,5,15,6],[25,4,25,5],[30,1,30,6],[21,27,21,28],[21,29,21,30],[21,23,21,24],[21,25,21,26],[39,0,39,6],[19,41,22,41],[4,13,4,14],[4,15,4,16],[4,17,4,18],[21,4,22,5],[10,1,10,6],[16,1,16,6],[6,4,6,6],[21,15,21,16],[21,17,21,18],[2,39,5,39],[3,7,3,10],[3,11,3,14],[3,15,3,18],[3,19,3,22],[4,19,4,20],[4,21,4,22],[21,21,21,22],[40,39,40,40],[42,0,42,6],[42,7,42,8],[42,9,42,10],[42,11,42,12],[42,13,42,14],[42,15,42,16],[41,19,41,20],[41,21,41,22],[42,17,42,18],[42,19,42,20],[42,21,42,22],[41,0,41,6],[41,7,41,8],[41,9,41,10],[41,11,41,12],[41,13,41,14],[41,15,41,16],[41,17,41,18],[42,35,42,36],[42,37,42,38],[42,23,42,24],[42,25,42,26],[9,4,9,6],[6,1,9,3],[42,27,42,28],[42,29,42,30],[42,31,42,32],[42,33,42,34],[21,35,21,36],[21,37,21,38],[41,23,41,24],[41,25,41,26],[41,27,41,28],[41,29,41,30],[41,31,41,32],[41,33,41,34],[41,35,41,36],[41,37,41,38],[32,4,32,5],[24,4,24,5],[21,31,21,32],[21,33,21,34],[21,13,21,14],[23,1,29,3],[21,19,21,20],[23,4,23,5]]}
[null,null,null,null,null,null,null,null,null,null,null,null,null,null,null,null,null,null,null,null,null,null,null,null,null,null,null,null,null,null,null,null,null,null,null,null,null,null,null,null,null,null,null,null,null,null,null,"A"]
["単位修得状況確認表（共通教育科目等）",null,null,null,null,null,null,null,null,null,null,null,null,null,null,null,null,null,null,null,null,null,null,null,null,null,null,null,null,null,null,null,null,null,null,null,null,null,null,null,null,null,null,null,null,null,null,"B"]
["共通教育科目・人間力養成プログラム",null,null,null,null,null,null,"取得単位数およびGP",null,null,null,null,null,null,null,null,null,null,null,null,null,null,null,null,null,null,null,null,null,null,null,null,null,null,null,null,null,null,null,"取得単位数","要修得\n単位数","累積GP",null,null,null,null,null,"C"]
[null,null,null,null,null,null,null,"　年次",null,null,null,"　年次",null,null,null,"　年次",null,null,null,"　年次",null,null,null,"　年次",null,null,null,"　年次",null,null,null,"　年次",null,null,null,"　年次",null,null,null,null,null,null,null,null,null,null,null,"D"]
[null,null,null,null,null,null,null,"１期",null,"２期",null,"３期",null,"４期",null,"５期",null,"６期",null,"７期",null,"８期",null,"９期",null,"10期",null,"11期",null,"12期",null,"13期",null,"14期",null,"15期",null,"16期",null,null,null,null,null,null,null,null,null,"F"]
[null,null,null,null,null,null,"　","単位","GP","単位","GP","単位","GP","単位","GP","単位","GP","単位","GP","単位","GP","単位","GP","単位","GP","単位","GP","単位","GP","単位","GP","単位","GP","単位","GP","単位","GP","単位","GP",null,null,null,null,null,null,null,null,"P"]
["共通教育科目","選択科目",null,null,"a 実践・判断・精神力",null,null,null,null,null,null,null,null,null,null,null,null,null,null,null,null,null,null,null,null,null,null,null,null,null,null,null,null,null,null,null,null,null,null,{"$f":"SUM(H7,J7,L7,N7,P7,R7,T7,V7,X7,Z7,AB7,AD7,AF7,AH7,AJ7,AL7)","v":0},4,null,null,"１．オレンジ枠に分野ごとの合計単位数を記入する。"]
[null,null,null,null,"b 知力（人文・社会科学）",null,null,null,null,null,null,null,null,null,null,null,null,null,null,null,null,null,null,null,null,null,null,null,null,null,null,null,null,null,null,null,null,null,null,0,6,null,null,"２．各科目の単位数を記入し、合計を計算する。"]
[null,null,null,null,"c 知力（自然科学）",null,null,null,null,null,null,null,null,null,null,null,null,null,null,null,null,null,null,null,null,null,null,null,null,null,null,null,null,null,null,null,null,null,null,0,6,null,null,"３．各科目のGPを記入し、合計を計算する。"]
[null,null,null,null,"うち、地域志向科目（選択必修科目）",null,null,null,null,null,null,null,null,null,null,null,null,null,null,null,null,null,null,null,null,null,null,null,null,null,null,null,null,null,null,null,null,null,null,{"$f":"SUM(H10,J10,L10,N10,P10,R10,T10,V10,X10,Z10,AB10,AD10,AF10,AH10,AJ10,AL10)","v":0},"［2］",null,null,"４．取得単位数を要取得単位数と比較する。"]
[null,"選択科目　計",null,null,null,null,null,null,null,null,null,null,null,null,null,null,null,null,null,null,null,null,null,null,null,null,null,null,null,null,null,null,null,null,null,null,null,null,null,0,16,{"$f":"SUM(I11,K11,M11,O11,Q11,S11,U11,W11,Y11,AA11,AC11,AE11,AG11,AI11,AK11,AM11)","v":0}]
[null,"選択必修\n科目",null,null,"d 身体力","理論",null,null,null,null,null,null,null,null,null,null,null,null,null,null,null,null,null,null,null,null,null,null,null,null,null,null,null,null,null,null,null,null,null,0,1]
[null,null,null,null,null,"実践",null,null,null,null,null,null,null,null,null,null,null,null,null,null,null,null,null,null,null,null,null,null,null,null,null,null,null,null,null,null,null,null,null,0,1,null,null,"※ 工学英語の成績は「第一外国語オープン」欄に記入する。"]
[null,null,null,null,"e コミュニケーション力","情報・通信を学ぶ",null,null,null,null,null,null,null,null,null,null,null,null,null,null,null,null,null,null,null,null,null,null,null,null,null,null,null,null,null,null,null,null,null,0,2]
[null,null,null,null,null,"第一外国語コア",null,null,null,null,null,null,null,null,null,null,null,null,null,null,null,null,null,null,null,null,null,null,null,null,null,null,null,null,null,null,null,null,null,0,6]
[null,null,null,null,null,"第一外国語オープン",null,null,null,null,null,null,null,null,null,null,null,null,null,null,null,null,null,null,null,null,null,null,null,null,null,null,null,null,null,null,null,null,null,0,2]
[null,"選択必修科目　計",null,null,null,null,null,null,null,null,null,null,null,null,null,null,null,null,null,null,null,null,null,null,null,null,null,null,null,null,null,null,null,null,null,null,null,null,null,0,12,{"$f":"SUM(I17,K17,M17,O17,Q17,S17,U17,W17,Y17,AA17,AC17,AE17,AG17,AI17,AK17,AM17)","v":0}]
["合計",null,null,null,null,null,null,null,null,null,null,null,null,null,null,null,null,null,null,null,null,null,null,null,null,null,null,null,null,null,null,null,null,null,null,null,null,null,null,0,28,{"$f":"SUM(I18,K18,M18,O18,Q18,S18,U18,W18,Y18,AA18,AC18,AE18,AG18,AI18,AK18,AM18)","v":0}]
[]
[" 基礎教育科目・専門基礎力養成プログラム",null,null,null,null,null,null,"履修科目の評価およびGP",null,null,null,null,null,null,null,null,null,null,null,null,null,null,null,null,null,null,null,null,null,null,null,null,null,null,null,null,null,null,null,"取得単位数","要修得\n単位数","累積GP"]
[null,null,null,null,null,null,null,"　年次",null,null,null,"　年次",null,null,null,"　年次",null,null,null,"　年次",null,null,null,"　年次",null,null,null,"　年次",null,null,null,"　年次",null,null,null,"　年次"]
[null,null,null,null,"授業科目",null,"単","１期",null,"２期",null,"３期",null,"４期",null,"５期",null,"６期",null,"７期",null,"８期",null,"９期",null,"10期",null,"11期",null,"12期",null,"13期",null,"14期",null,"15期",null,"16期"]
[null,null,null,null,null,null,"位","評価","GP","評価","GP","評価","GP","評価","GP","評価","GP","評価","GP","評価","GP","評価","GP","評価","GP","評価","GP","評価","GP","評価","GP","評価","GP","評価","GP","評価","GP","評価","GP"]
["基礎教育科目","単独必修科目",null,null,"微分積分学ＡⅠ",null,2,null,null,null,null,null,null,null,null,null,null,null,null,null,null,null,null,null,null,null,null,null,null,null,null,null,null,null,null,null,null,null,null,null,null,null,null,"１．黄色枠に各科目の評価を記入する。",null,"基礎教育科目","単独必修科目",589621032101,{"$f":"E24","v":"微分積分学ＡⅠ"}]
[null,null,null,null,"微分積分学ＡⅡ",null,2,null,null,null,null,null,null,null,null,null,null,null,null,null,null,null,null,null,null,null,null,null,null,null,null,null,null,null,null,null,null,null,null,null,null,null,null,"２．オレンジ枠に合計単位数を記入する。",null,null,null,589621032102,{"$f":"E25","v":"微分積分学ＡⅡ"}]
[null,null,null,null,"線形代数学Ⅰ",null,2,null,null,null,null,null,null,null,null,null,null,null,null,null,null,null,null,null,null,null,null,null,null,null,null,null,null,null,null,null,null,null,null,null,null,null,null,"３．各科目のGPを記入し、合計を計算する。",null,null,null,589621032106,"線形代数学Ⅰ"]
[null,null,null,null,"線形代数学Ⅱ",null,2,null,null,null,null,null,null,null,null,null,null,null,null,null,null,null,null,null,null,null,null,null,null,null,null,null,null,null,null,null,null,null,null,null,null,null,null,"４．取得単位数を要取得単位数と比較する。",null,null,null,589621032107,"線形代数学Ⅱ"]
[null,null,null,null,"物理学基礎ＡⅠ",null,2,null,null,null,null,null,null,null,null,null,null,null,null,null,null,null,null,null,null,null,null,null,null,null,null,null,null,null,null,null,null,null,null,null,null,null,null,null,null,null,null,589621033101,"物理学基礎ＡⅠ"]
[null,null,null,null,"物理学基礎ＡⅡ",null,2,null,null,null,null,null,null,null,null,null,null,null,null,null,null,null,null,null,null,null,null,null,null,null,null,null,null,null,null,null,null,null,null,null,null,null,null,null,null,null,null,589621033102,"物理学基礎ＡⅡ"]
[null,null,null,null,"物理学実験Ａ",null,2,null,null,null,null,null,null,null,null,null,null,null,null,null,null,null,null,null,null,null,null,null,null,null,null,null,null,null,null,null,null,null,null,null,null,null,null,null,null,null,null,589621033302,"物理学実験Ａ"]
[null,"単独必修科目　計",null,null,null,null,null,null,null,null,null,null,null,null,null,null,null,null,null,null,null,null,null,null,null,null,null,null,null,null,null,null,null,null,null,null,null,null,null,{"$f":"SUM(H31,J31,L31,N31,P31,R31,T31,V31,X31,Z31,AB31,AD31,AF31,AH31,AJ31,AL31)","v":0},14,{"$f":"SUM(I31,K31,M31,O31,Q31,S31,U31,W31,Y31,AA31,AC31,AE31,AG31,AI31,AK31,AM31)","v":0}]
[null,"選択必修科目",null,null,"統計学Ⅰ",null,2,null,null,null,null,null,null,null,null,null,null,null,null,null,null,null,null,null,null,null,null,null,null,null,null,null,null,null,null,null,null,null,null,null,null,null,null,null,null,null,"選択必修科目",589621031101,"統計学Ⅰ"]
[null,null,null,null,"生態学基礎",null,2,null,null,null,null,null,null,null,null,null,null,null,null,null,null,null,null,null,null,null,null,null,null,null,null,null,null,null,null,null,null,null,null,null,null,null,null,null,null,null,null,589621035101,"生態学基礎"]
[null,null,null,null,"化学実験B",null,1,null,null,null,null,null,null,null,null,null,null,null,null,null,null,null,null,null,null,null,null,null,null,null,null,null,null,null,null,null,null,null,null,null,null,null,null,null,null,null,null,589621034303,"化学実験B"]
[null,null,null,null,"生命科学実験B",null,1,null,null,null,null,null,null,null,null,null,null,null,null,null,null,null,null,null,null,null,null,null,null,null,null,null,null,null,null,null,null,null,null,null,null,null,null,null,null,null,null,589621035303,"生命科学実験B"]
[null,null,null,null,"地学実験B",null,1,null,null,null,null,null,null,null,null,null,null,null,null,null,null,null,null,null,null,null,null,null,null,null,null,null,null,null,null,null,null,null,null,null,null,null,null,null,null,null,null,589621036303,"地学実験B"]
[null,"選択必修科目　計",null,null,null,null,null,null,null,null,null,null,null,null,null,null,null,null,null,null,null,null,null,null,null,null,null,null,null,null,null,null,null,null,null,null,null,null,null,{"$f":"SUM(H37,J37,L37,N37,P37,R37,T37,V37,X37,Z37,AB37,AD37,AF37,AH37,AJ37,AL37)","v":0},2,{"$f":"SUM(I37,K37,M37,O37,Q37,S37,U37,W37,Y37,AA37,AC37,AE37,AG37,AI37,AK37,AM37)","v":0}]
["合計",null,null,null,null,null,null,null,null,null,null,null,null,null,null,null,null,null,null,null,null,null,null,null,null,null,null,null,null,null,null,null,null,null,null,null,null,null,null,{"$f":"SUM(H38,J38,L38,N38,P38,R38,T38,V38,X38,Z38,AB38,AD38,AF38,AH38,AJ38,AL38)","v":0},16,{"$f":"SUM(I38,K38,M38,O38,Q38,S38,U38,W38,Y38,AA38,AC38,AE38,AG38,AI38,AK38,AM38)","v":0}]
[]
["共通教育科目等合計",null,null,null,null,null,null,{"$f":"SUM(H18,H38)","v":0},0,0,0,0,0,0,0,0,0,0,0,0,0,0,0,0,0,0,0,0,0,0,0,0,0,0,0,0,0,0,0,{"$f":"SUM(H40,J40,L40,N40,P40,R40,T40,V40,X40,Z40,AB40,AD40,AF40,AH40,AJ40,AL40)","v":0},44,{"$f":"SUM(I40,K40,M40,O40,Q40,S40,U40,W40,Y40,AA40,AC40,AE40,AG40,AI40,AK40,AM40)","v":0}]
[]
["【共通教育科目等】評価Pの単位数",null,null,null,null,null,null,null,null,null,null,null,null,null,null,null,null,null,null,null,null,null,null,null,null,null,null,null,null,null,null,null,null,null,null,null,null,null,null,{"$f":"SUM(H42:AM42)","v":0}]
["【共通教育科目等】不合格（評価F）の単位数",null,null,null,null,null,null,null,null,null,null,null,null,null,null,null,null,null,null,null,null,null,null,null,null,null,null,null,null,null,null,null,null,null,null,null,null,null,null,{"$f":"SUM(H43:AM43)","v":0}]

{"sheet":"単位修得状況確認表（専門教育科目）","index":5,"n_rows":88,"n_cols":51,"rows_kept":88,"cut":false,"hidden":false,"merged":[[4,37,4,38],[3,23,3,26],[44,46,53,46],[6,45,23,45],[6,46,23,46],[8,43,10,43],[12,43,14,43],[15,43,18,43],[35,45,41,45],[35,46,41,46],[44,45,53,45],[4,23,4,24],[26,45,32,45],[26,46,32,46],[1,0,1,41],[2,0,5,0],[2,1,5,1],[2,39,5,39],[3,7,3,10],[3,11,3,14],[3,15,3,18],[4,9,4,10],[4,11,4,12],[4,13,4,14],[2,41,5,41],[3,19,3,22],[4,25,4,26],[2,40,5,40],[4,35,4,36],[2,7,2,38],[4,7,4,8],[3,31,3,34],[3,35,3,38],[4,27,4,28],[4,29,4,30],[4,31,4,32],[4,33,4,34],[3,27,3,30],[4,15,4,16],[4,17,4,18],[4,19,4,20],[4,21,4,22],[86,13,86,14],[86,15,86,16],[86,17,86,18],[24,0,24,6],[6,0,23,0],[6,1,23,1],[81,0,81,6],[54,0,54,6],[33,0,33,6],[35,0,41,0],[35,1,41,1],[42,0,42,6],[26,0,32,0],[26,1,32,1],[56,0,65,0],[56,1,65,1],[87,17,87,18],[87,19,87,20],[44,0,53,0],[44,1,53,1],[86,0,86,6],[86,19,86,20],[87,21,87,22],[87,0,87,6],[87,7,87,8],[87,9,87,10],[87,11,87,12],[87,13,87,14],[87,15,87,16],[86,21,86,22],[83,0,83,6],[84,0,84,6],[86,7,86,8],[86,9,86,10],[86,11,86,12],[66,0,66,6],[68,0,80,0],[68,1,80,1],[58,50,59,50],[86,35,86,36],[86,37,86,38],[87,23,87,24],[87,25,87,26],[87,27,87,28],[87,29,87,30],[87,31,87,32],[87,33,87,34],[87,35,87,36],[87,37,87,38],[86,23,86,24],[86,25,86,26],[86,27,86,28],[86,29,86,30],[86,31,86,32],[86,33,86,34],[85,39,85,40],[68,45,80,45],[68,46,80,46],[56,45,65,45],[56,46,65,46]]}
[null,null,null,null,null,null,null,null,null,null,null,null,null,null,null,null,null,null,null,null,null,null,null,null,null,null,null,null,null,null,null,null,null,null,null,null,null,null,null,null,null,null,null,null,null,null,null,"A"]
["単位修得状況確認表（専門教育科目）",null,null,null,null,null,null,null,null,null,null,null,null,null,null,null,null,null,null,null,null,null,null,null,null,null,null,null,null,null,null,null,null,null,null,null,null,null,null,null,null,null,null,"１．黄色枠に各科目の評価を記入する。",null,null,null,"B"]
["科目群","区分","工 ","専","授","単","担","履修科目の評価およびGP",null,null,null,null,null,null,null,null,null,null,null,null,null,null,null,null,null,null,null,null,null,null,null,null,null,null,null,null,null,null,null,"取得単位数","要修得\n単位数","累積GP",null,"２．オレンジ枠に合計単位数を記入する。",null,null,null,"C"]
[null,null,"学 "," ","業"," ","当","　年次",null,null,null,"　年次",null,null,null,"　年次",null,null,null,"　年次",null,null,null,"　年次",null,null,null,"　年次",null,null,null,"　年次",null,null,null,"　年次",null,null,null,null,null,null,null,"３．各科目のGPを記入し、合計を計算する。",null,null,null,"D"]
[null,null,"基",null,"科",null,"教","１期",null,"２期",null,"３期",null,"４期",null,"５期",null,"６期",null,"７期",null,"８期",null,"９期",null,"10期",null,"11期",null,"12期",null,"13期",null,"14期",null,"15期",null,"16期",null,null,null,null,null,"４．取得単位数を要取得単位数と比較する。",null,null,null,"F"]
[null,null,"礎","門","目","位","員","評価","GP","評価","GP","評価","GP","評価","GP","評価","GP","評価","GP","評価","GP","評価","GP","評価","GP","評価","GP","評価","GP","評価","GP","評価","GP","評価","GP","評価","GP","評価","GP",null,null,null,null,null,null,null,null,"P"]
["必修科目","必修科目"," ","○","プログラミング序論",2,"水野",null,null,null,null,null,null,null,null,null,null,null,null,null,null,null,null,null,null,null,null,null,null,null,null,null,null,null,null,null,null,null,null,null,null,null,null,null,null,"必修科目","必修科目",259752611102,{"$f":"E7","v":"プログラミング序論"}]
[null,null,"○"," ","情報生体システム工学基礎",2,"大塚",null,null,null,null,null,null,null,null,null,null,null,null,null,null,null,null,null,null,null,null,null,null,null,null,null,null,null,null,null,null,null,null,null,null,null,null,null,null,null,null,250092900001,{"$f":"E8","v":"情報生体システム工学基礎"}]
[null,null,null,"○","フレッシュマンセミナー",1,"渕田ほか",null,null,null,null,null,null,null,null,null,null,null,null,null,null,null,null,null,null,null,null,null,null,null,null,null,null,null,null,null,null,null,null,null,null,null,null,"※ 期をまたがって開講される科目は、成績の\n　出された期に記入する。例えば通年の場合\n　後期に記入する。",null,null,null,250152511101,"フレッシュマンセミナー"]
[null,null,"○",null,"確率統計序論",1,"吉田(秀)",null,null,null,null,null,null,null,null,null,null,null,null,null,null,null,null,null,null,null,null,null,null,null,null,null,null,null,null,null,null,null,null,null,null,null,null,null,null,null,null,250082600001,"確率統計序論"]
[null,null,null,"○","プログラミング序論演習",2,"福元，水野",null,null,null,null,null,null,null,null,null,null,null,null,null,null,null,null,null,null,null,null,null,null,null,null,null,null,null,null,null,null,null,null,null,null,null,null,null,null,null,null,250092900002,"プログラミング序論演習"]
[null,null,"○"," ","応用数学Ⅰ",2,"大橋",null,null,null,null,null,null,null,null,null,null,null,null,null,null,null,null,null,null,null,null,null,null,null,null,null,null,null,null,null,null,null,null,null,null,null,null,null,null,null,null,259742611101,"応用数学Ⅰ"]
[null,null,"○",null,"応用数学Ⅰ演習",1,"大野，大橋",null,null,null,null,null,null,null,null,null,null,null,null,null,null,null,null,null,null,null,null,null,null,null,null,null,null,null,null,null,null,null,null,null,null,null,null,"※ 随意科目については、GPおよびGPAの計算に\n　含めない。また、進級・卒業要件には含まれない。",null,null,null,250092900003,"応用数学Ⅰ演習"]
[null,null," ","○","情報生体ｼｽﾃﾑ工学実験Ⅰ",1,"内山ほか",null,null,null,null,null,null,null,null,null,null,null,null,null,null,null,null,null,null,null,null,null,null,null,null,null,null,null,null,null,null,null,null,null,null,null,null,null,null,null,null,250092900004,"情報生体ｼｽﾃﾑ工学実験Ⅰ"]
[null,null,"○"," ","応用数学Ⅱ",2,"吉本",null,null,null,null,null,null,null,null,null,null,null,null,null,null,null,null,null,null,null,null,null,null,null,null,null,null,null,null,null,null,null,null,null,null,null,null,null,null,null,null,259742611102,"応用数学Ⅱ"]
[null,null,"○",null,"応用数学Ⅱ演習",1,"岡村，吉本",null,null,null,null,null,null,null,null,null,null,null,null,null,null,null,null,null,null,null,null,null,null,null,null,null,null,null,null,null,null,null,null,null,null,null,null,"※ 評価Pの科目については、GPおよびGPAの計算に含まない。しかしながら、進級・卒業要件の累積単位数には含まれることがある（インターンシップ等）。",null,null,null,250092900005,"応用数学Ⅱ演習"]
[null,null,null,"○","プログラミング言語Ⅰ",2,"小野，木原",null,null,null,null,null,null,null,null,null,null,null,null,null,null,null,null,null,null,null,null,null,null,null,null,null,null,null,null,null,null,null,null,null,null,null,null,null,null,null,null,259752611108,"プログラミング言語Ⅰ"]
[null,null,null,"○","プログラミング言語Ⅰ演習",1,"木原，小野",null,null,null,null,null,null,null,null,null,null,null,null,null,null,null,null,null,null,null,null,null,null,null,null,null,null,null,null,null,null,null,null,null,null,null,null,null,null,null,null,250092900006,"プログラミング言語Ⅰ演習"]
[null,null," ","○","情報生体ｼｽﾃﾑ工学実験Ⅱ",1,"吉田(秀)ほか",null,null,null,null,null,null,null,null,null,null,null,null,null,null,null,null,null,null,null,null,null,null,null,null,null,null,null,null,null,null,null,null,null,null,null,null,null,null,null,null,250092900007,"情報生体ｼｽﾃﾑ工学実験Ⅱ"]
[null,null," ","○","情報生体ｼｽﾃﾑ工学実験Ⅲ",2,"大塚ほか",null,null,null,null,null,null,null,null,null,null,null,null,null,null,null,null,null,null,null,null,null,null,null,null,null,null,null,null,null,null,null,null,null,null,null,null,null,null,null,null,250092900008,"情報生体ｼｽﾃﾑ工学実験Ⅲ"]
[null,null,null,"○","システム工学英語",2,"アレクサンダー*",null,null,null,null,null,null,null,null,null,null,null,null,null,null,null,null,null,null,null,null,null,null,null,null,null,null,null,null,null,null,null,null,null,null,null,null,null,null,null,null,250092900009,"システム工学英語"]
[null,null," ","○","情　報　倫　理　学",2,"内山",null,null,null,null,null,null,null,null,null,null,null,null,null,null,null,null,null,null,null,null,null,null,null,null,null,null,null,null,null,null,null,null,null,null,null,null,null,null,null,null,250152613101,"情　報　倫　理　学"]
[null,null," ","○","情報生体ｼｽﾃﾑ工学実験Ⅳ",2,"渡邊ほか",null,null,null,null,null,null,null,null,null,null,null,null,null,null,null,null,null,null,null,null,null,null,null,null,null,null,null,null,null,null,null,null,null,null,null,null,null,null,null,null,250092900011,"情報生体ｼｽﾃﾑ工学実験Ⅳ"]
[null,null," ","○","卒　　業　　研　　究",6,"学科の全教員",null,null,null,null,null,null,null,null,null,null,null,null,null,null,null,null,null,null,null,null,null,null,null,null,null,null,null,null,null,null,null,null,null,null,null,null,null,null,null,null,250226000160,"卒　　業　　研　　究"]
["合計",null,null,null,null,null,null,null,null,null,null,null,null,null,null,null,null,null,null,null,null,null,null,null,null,null,null,null,null,null,null,null,null,null,null,null,null,null,null,{"$f":"SUM(H25,J25,L25,N25,P25,R25,T25,V25,X25,Z25,AB25,AD25,AF25,AH25,AJ25,AL25)","v":0},33,{"$f":"SUM(I25,K25,M25,O25,Q25,S25,U25,W25,Y25,AA25,AC25,AE25,AG25,AI25,AK25,AM25)","v":0}]
[]
["情報基礎科目群","選択科目A群",null,"○","情　　報　　数　　学",2,"渕田",null,null,null,null,null,null,null,null,null,null,null,null,null,null,null,null,null,null,null,null,null,null,null,null,null,null,null,null,null,null,null,null,null,null,null,null,null,null,"情報基礎科目群","選択科目A群",259752613116,"情　　報　　数　　学"]
[null,null," ","○","数値解析",2,"二宮(公)",null,null,null,null,null,null,null,null,null,null,null,null,null,null,null,null,null,null,null,null,null,null,null,null,null,null,null,null,null,null,null,null,null,null,null,null,null,null,null,null,259742612102,"数値解析"]
[null,null," ","○","電気回路学Ⅰ及び演習",3,"辻村，塗木",null,null,null,null,null,null,null,null,null,null,null,null,null,null,null,null,null,null,null,null,null,null,null,null,null,null,null,null,null,null,null,null,null,null,null,null,null,null,null,null,250222000001,"電気回路学Ⅰ及び演習"]
[null,null," ","○","情　　報　　理　　論",2,"川﨑",null,null,null,null,null,null,null,null,null,null,null,null,null,null,null,null,null,null,null,null,null,null,null,null,null,null,null,null,null,null,null,null,null,null,null,null,null,null,null,null,259752611103,"情　　報　　理　　論"]
[null,null," ","○","計　算　機　工　学",2,"山之上*",null,null,null,null,null,null,null,null,null,null,null,null,null,null,null,null,null,null,null,null,null,null,null,null,null,null,null,null,null,null,null,null,null,null,null,null,null,null,null,null,250226000101,"計　算　機　工　学"]
[null,null," ","○","電気磁気学及び演習",3,"加藤，山下",null,null,null,null,null,null,null,null,null,null,null,null,null,null,null,null,null,null,null,null,null,null,null,null,null,null,null,null,null,null,null,null,null,null,null,null,null,null,null,null,250092900013,"電気磁気学及び演習"]
[null,null,null,"○","情報セキュリティ",2,"升屋*",null,null,null,null,null,null,null,null,null,null,null,null,null,null,null,null,null,null,null,null,null,null,null,null,null,null,null,null,null,null,null,null,null,null,null,null,null,null,null,null,259752613132,{"$f":"E33","v":"情報セキュリティ"}]
["合計",null,null,null,null,null,null,null,null,null,null,null,null,null,null,null,null,null,null,null,null,null,null,null,null,null,null,null,null,null,null,null,null,null,null,null,null,null,null,{"$f":"SUM(H34,J34,L34,N34,P34,R34,T34,V34,X34,Z34,AB34,AD34,AF34,AH34,AJ34,AL34)","v":0},10,{"$f":"SUM(I34,K34,M34,O34,Q34,S34,U34,W34,Y34,AA34,AC34,AE34,AG34,AI34,AK34,AM34)","v":0}]
[]
["ソフトウェアコア科目群","選択科目B群",null,"○","アルゴリズムとデータ構造",2,"渕田",null,null,null,null,null,null,null,null,null,null,null,null,null,null,null,null,null,null,null,null,null,null,null,null,null,null,null,null,null,null,null,null,null,null,null,null,null,null,"ソフトウェアコア科目群","選択科目B群",259752611101,"アルゴリズムとデータ構造"]
[null,null," ","○","プログラミング言語Ⅱ",2,"水野",null,null,null,null,null,null,null,null,null,null,null,null,null,null,null,null,null,null,null,null,null,null,null,null,null,null,null,null,null,null,null,null,null,null,null,null,null,null,null,null,259752613126,"プログラミング言語Ⅱ"]
[null,null,null,"○","ソフトウェア工学",2,"渕田",null,null,null,null,null,null,null,null,null,null,null,null,null,null,null,null,null,null,null,null,null,null,null,null,null,null,null,null,null,null,null,null,null,null,null,null,null,null,null,null,259752613134,"ソフトウェア工学","「エ」が異なるためヒットせず","ソフトウエア工学 259752613134"]
[null,null," ","○","オペレーティングシステム論",2,"佐藤(公)",null,null,null,null,null,null,null,null,null,null,null,null,null,null,null,null,null,null,null,null,null,null,null,null,null,null,null,null,null,null,null,null,null,null,null,null,null,null,null,null,259752613127,"オペレーティングシステム論"]
[null,null," ","○","プログラミング言語Ⅱ演習",1,"鹿嶋，渕田",null,null,null,null,null,null,null,null,null,null,null,null,null,null,null,null,null,null,null,null,null,null,null,null,null,null,null,null,null,null,null,null,null,null,null,null,null,null,null,null,250092900014,"プログラミング言語Ⅱ演習"]
[null,null," ","○","オートマトンと言語理論",2,"森*",null,null,null,null,null,null,null,null,null,null,null,null,null,null,null,null,null,null,null,null,null,null,null,null,null,null,null,null,null,null,null,null,null,null,null,null,null,null,null,null,259752613137,"オートマトンと言語理論"]
[null,null," ","○","データベース",2,"水野",null,null,null,null,null,null,null,null,null,null,null,null,null,null,null,null,null,null,null,null,null,null,null,null,null,null,null,null,null,null,null,null,null,null,null,null,null,null,null,null,259752613101,"データベース"]
["合計",null,null,null,null,null,null,null,null,null,null,null,null,null,null,null,null,null,null,null,null,null,null,null,null,null,null,null,null,null,null,null,null,null,null,null,null,null,null,{"$f":"SUM(H43,J43,L43,N43,P43,R43,T43,V43,X43,Z43,AB43,AD43,AF43,AH43,AJ43,AL43)","v":0},9,{"$f":"SUM(I43,K43,M43,O43,Q43,S43,U43,W43,Y43,AA43,AC43,AE43,AG43,AI43,AK43,AM43)","v":0}]
[]
["情報システムコア科目群","選択科目C群"," ","○","情　報　論　理　回　路",2,"佐藤(公)",null,null,null,null,null,null,null,null,null,null,null,null,null,null,null,null,null,null,null,null,null,null,null,null,null,null,null,null,null,null,null,null,null,null,null,null,null,null,"情報システムコア科目群","選択科目C群",259752611105,"情　報　論　理　回　路"]
[null,null,null,"○","計算機ネットワーク",2,"佐藤(公)",null,null,null,null,null,null,null,null,null,null,null,null,null,null,null,null,null,null,null,null,null,null,null,null,null,null,null,null,null,null,null,null,null,null,null,null,null,null,null,null,259752613125,"計算機ネットワーク"]
[null,null,null,"○","マルチメディア",2,"大橋",null,null,null,null,null,null,null,null,null,null,null,null,null,null,null,null,null,null,null,null,null,null,null,null,null,null,null,null,null,null,null,null,null,null,null,null,null,null,null,null,259752613103,"マルチメディア"]
[null,null,null,"○","自然言語処理",2,"小野",null,null,null,null,null,null,null,null,null,null,null,null,null,null,null,null,null,null,null,null,null,null,null,null,null,null,null,null,null,null,null,null,null,null,null,null,null,null,null,null,259752613106,"自然言語処理"]
[null,null,null,"○","計測工学",2,"吉田(秀)",null,null,null,null,null,null,null,null,null,null,null,null,null,null,null,null,null,null,null,null,null,null,null,null,null,null,null,null,null,null,null,null,null,null,null,null,null,null,null,null,250092900015,"計測工学"]
[null,null," ","○","人工知能",2,"小野，渡邊",null,null,null,null,null,null,null,null,null,null,null,null,null,null,null,null,null,null,null,null,null,null,null,null,null,null,null,null,null,null,null,null,null,null,null,null,null,null,null,null,250092900016,"人工知能"]
[null,null," ","○","情報通信工学",2,"大橋",null,null,null,null,null,null,null,null,null,null,null,null,null,null,null,null,null,null,null,null,null,null,null,null,null,null,null,null,null,null,null,null,null,null,null,null,null,null,null,null,259752613118,"情報通信工学"]
[null,null," ","○","画像情報工学",2,"渡邊",null,null,null,null,null,null,null,null,null,null,null,null,null,null,null,null,null,null,null,null,null,null,null,null,null,null,null,null,null,null,null,null,null,null,null,null,null,null,null,null,259752613122,"画像情報工学"]
[null,null," ","○","コンピュータ・グラフィクス",2,"川﨑",null,null,null,null,null,null,null,null,null,null,null,null,null,null,null,null,null,null,null,null,null,null,null,null,null,null,null,null,null,null,null,null,null,null,null,null,null,null,null,null,251329000006,"コンピュータ・グラフィクス","ヒットせず"]
[null,null,null,"○","シミュレーション工学",2,"二宮(公)",null,null,null,null,null,null,null,null,null,null,null,null,null,null,null,null,null,null,null,null,null,null,null,null,null,null,null,null,null,null,null,null,null,null,null,null,null,null,null,null,259752613117,"シミュレーション工学"]
["合計",null,null,null,null,null,null,null,null,null,null,null,null,null,null,null,null,null,null,null,null,null,null,null,null,null,null,null,null,null,null,null,null,null,null,null,null,null,null,{"$f":"SUM(H55,J55,L55,N55,P55,R55,T55,V55,X55,Z55,AB55,AD55,AF55,AH55,AJ55,AL55)","v":0},12,{"$f":"SUM(I55,K55,M55,O55,Q55,S55,U55,W55,Y55,AA55,AC55,AE55,AG55,AI55,AK55,AM55)","v":0}]
[]
["情報生体システム科目群","選択科目D群"," ","○","生体機構学",2,"内山",null,null,null,null,null,null,null,null,null,null,null,null,null,null,null,null,null,null,null,null,null,null,null,null,null,null,null,null,null,null,null,null,null,null,null,null,null,null,"情報生体システム科目群","選択科目D群",250092900018,"生体機構学"]
[null,null," ","○","システム工学",2,"湯ノ口",null,null,null,null,null,null,null,null,null,null,null,null,null,null,null,null,null,null,null,null,null,null,null,null,null,null,null,null,null,null,null,null,null,null,null,null,null,null,null,null,259652616115,"システム工学"]
[null,null,null,"○","電気回路学Ⅱ",2,"湯ノ口",null,null,null,null,null,null,null,null,null,null,null,null,null,null,null,null,null,null,null,null,null,null,null,null,null,null,null,null,null,null,null,null,null,null,null,null,null,null,null,null,259752614102,"電気回路学Ⅱ","2件以上ヒット","電気回路学Ⅱ 250072700020\n電気回路学Ⅱ（情） 259752614102"]
[null,null,null,"○","生体情報工学Ⅰ",2,"内山",null,null,null,null,null,null,null,null,null,null,null,null,null,null,null,null,null,null,null,null,null,null,null,null,null,null,null,null,null,null,null,null,null,null,null,null,null,null,null,null,259752613108,"生体情報工学Ⅰ"]
[null,null,null,"○","電子回路",2,"王",null,null,null,null,null,null,null,null,null,null,null,null,null,null,null,null,null,null,null,null,null,null,null,null,null,null,null,null,null,null,null,null,null,null,null,null,null,null,null,null,250226013001,"電子回路"]
[null,null," ","○","計算物理学",2,"加藤",null,null,null,null,null,null,null,null,null,null,null,null,null,null,null,null,null,null,null,null,null,null,null,null,null,null,null,null,null,null,null,null,null,null,null,null,null,null,null,null,250092900021,"計算物理学"]
[null,null," ","○","電気化学",2,"吉本",null,null,null,null,null,null,null,null,null,null,null,null,null,null,null,null,null,null,null,null,null,null,null,null,null,null,null,null,null,null,null,null,null,null,null,null,null,null,null,null,259552227104,"電気化学"]
[null,null," ","○","生体情報工学Ⅱ",2,"王",null,null,null,null,null,null,null,null,null,null,null,null,null,null,null,null,null,null,null,null,null,null,null,null,null,null,null,null,null,null,null,null,null,null,null,null,null,null,null,null,259752613109,"生体情報工学Ⅱ"]
[null,null," ","○","ヒューマンインターフェイス",2,"辻村",null,null,null,null,null,null,null,null,null,null,null,null,null,null,null,null,null,null,null,null,null,null,null,null,null,null,null,null,null,null,null,null,null,null,null,null,null,null,null,null,259752613102,"ヒューマンインターフェイス"]
[null,null," ","○","信頼性システム工学",2,"大塚",null,null,null,null,null,null,null,null,null,null,null,null,null,null,null,null,null,null,null,null,null,null,null,null,null,null,null,null,null,null,null,null,null,null,null,null,null,null,null,null,259652116108,{"$f":"E66","v":"信頼性システム工学"}]
["合計",null,null,null,null,null,null,null,null,null,null,null,null,null,null,null,null,null,null,null,null,null,null,null,null,null,null,null,null,null,null,null,null,null,null,null,null,null,null,{"$f":"SUM(H67,J67,L67,N67,P67,R67,T67,V67,X67,Z67,AB67,AD67,AF67,AH67,AJ67,AL67)","v":0},12,{"$f":"SUM(I67,K67,M67,O67,Q67,S67,U67,W67,Y67,AA67,AC67,AE67,AG67,AI67,AK67,AM67)","v":0}]
[]
["工学基礎・教養科目群","選択科目E群",null,"○","化学基礎",2,"環化全教員*",null,null,null,null,null,null,null,null,null,null,null,null,null,null,null,null,null,null,null,null,null,null,null,null,null,null,null,null,null,null,null,null,null,null,null,null,null,null,"工学基礎・教養科目群","選択科目E群",250099110002,"化学基礎"]
[null,null,null,"○","地球科学基礎",2,"浅野*，山城*，三隅*",null,null,null,null,null,null,null,null,null,null,null,null,null,null,null,null,null,null,null,null,null,null,null,null,null,null,null,null,null,null,null,null,null,null,null,null,null,null,null,null,250299110001,"地球科学基礎"]
[null,null," ","○","情報生体システム工学\n　　　　　　　　　特別講義Ⅰ",1,"未定",null,null,null,null,null,null,null,null,null,null,null,null,null,null,null,null,null,null,null,null,null,null,null,null,null,null,null,null,null,null,null,null,null,null,null,null,null,null,null,null,250092900025,"情報生体システム工学\n　　　　　　　　　特別講義Ⅰ"]
[null,null," ","○","情報生体システム工学\n　　　　　　　　　特別講義Ⅱ",1,"未定",null,null,null,null,null,null,null,null,null,null,null,null,null,null,null,null,null,null,null,null,null,null,null,null,null,null,null,null,null,null,null,null,null,null,null,null,null,null,null,null,250092900026,{"$f":"E72","v":"情報生体システム工学\n　　　　　　　　　特別講義Ⅱ"}]
[null,null," ","○","原子力・放射線と環境",2,"佐藤(紘)*",null,null,null,null,null,null,null,null,null,null,null,null,null,null,null,null,null,null,null,null,null,null,null,null,null,null,null,null,null,null,null,null,null,null,null,null,null,null,null,null,250042099101,"原子力・放射線と環境"]
[null,null," ","○","生　産　工　学　論",2,null,null,null,null,null,null,null,null,null,null,null,null,null,null,null,null,null,null,null,null,null,null,null,null,null,null,null,null,null,null,null,null,null,null,null,null,null,null,null,null,null,250299200001,"生　産　工　学　論"]
[null,null," ","○","エレクトロニクス論",2," ",null,null,null,null,null,null,null,null,null,null,null,null,null,null,null,null,null,null,null,null,null,null,null,null,null,null,null,null,null,null,null,null,null,null,null,null,null,null,null,null,250228100002,"エレクトロニクス論"]
[null,null," ","○","材　料　科　学　論",2,"全学科共通",null,null,null,null,null,null,null,null,null,null,null,null,null,null,null,null,null,null,null,null,null,null,null,null,null,null,null,null,null,null,null,null,null,null,null,null,null,null,null,null,250228100005,"材　料　科　学　論"]
[null,null," ","○","科　学　技　術　論",2,"科目を参照",null,null,null,null,null,null,null,null,null,null,null,null,null,null,null,null,null,null,null,null,null,null,null,null,null,null,null,null,null,null,null,null,null,null,null,null,null,null,null,null,250228100006,"科　学　技　術　論"]
[null,null," ","○","環境工学論",2," ",null,null,null,null,null,null,null,null,null,null,null,null,null,null,null,null,null,null,null,null,null,null,null,null,null,null,null,null,null,null,null,null,null,null,null,null,null,null,null,null,250228100004,"環境工学論"]
[null,null," ","○","エネルギー工学論",2,null,null,null,null,null,null,null,null,null,null,null,null,null,null,null,null,null,null,null,null,null,null,null,null,null,null,null,null,null,null,null,null,null,null,null,null,null,null,null,null,null,250228100003,"エネルギー工学論"]
[null,null,null,"○","工場見学",1,"未定*",null,null,null,null,null,null,null,null,null,null,null,null,null,null,null,null,null,null,null,null,null,null,null,null,null,null,null,null,null,null,null,null,null,null,null,null,null,null,null,null,259752613401,"工場見学"]
[null,null," ","○","インターンシップ",1,"未定*",null,null,null,null,null,null,null,null,null,null,null,null,null,null,null,null,null,null,null,null,null,null,null,null,null,null,null,null,null,null,null,null,null,null,null,null,null,null,null,null,250223010041,"インターンシップ"]
["合計",null,null,null,null,null,null,null,null,null,null,null,null,null,null,null,null,null,null,null,null,null,null,null,null,null,null,null,null,null,null,null,null,null,null,null,null,null,null,{"$f":"SUM(H82,J82,L82,N82,P82,R82,T82,V82,X82,Z82,AB82,AD82,AF82,AH82,AJ82,AL82)","v":0},4,{"$f":"SUM(I82,K82,M82,O82,Q82,S82,U82,W82,Y82,AA82,AC82,AE82,AG82,AI82,AK82,AM82)","v":0}]
[]
["専門教育科目合計",null,null,null,null,null,null,{"$f":"SUM(H25,H34,H43,H55,H67,H82)","v":0},0,0,0,0,0,0,0,0,0,0,0,0,0,0,0,0,0,0,0,0,0,0,0,0,0,0,0,0,0,0,0,{"$f":"SUM(H84,J84,L84,N84,P84,R84,T84,V84,X84,Z84,AB84,AD84,AF84,AH84,AJ84,AL84)","v":0},80,{"$f":"SUM(I84,K84,M84,O84,Q84,S84,U84,W84,Y84,AA84,AC84,AE84,AG84,AI84,AK84,AM84)","v":0}]
["修得総単位数",null,null,null,null,null,null,{"$f":"'単位修得状況確認表（共通教育科目等）'!H40+'単位修得状況確認表（専門教育科目）'!H84","v":0},{"$f":"'単位修得状況確認表（共通教育科目等）'!I40+'単位修得状況確認表（専門教育科目）'!I84","v":0},{"$f":"'単位修得状況確認表（共通教育科目等）'!J40+'単位修得状況確認表（専門教育科目）'!J84","v":0},{"$f":"'単位修得状況確認表（共通教育科目等）'!K40+'単位修得状況確認表（専門教育科目）'!K84","v":0},{"$f":"'単位修得状況確認表（共通教育科目等）'!L40+'単位修得状況確認表（専門教育科目）'!L84","v":0},{"$f":"'単位修得状況確認表（共通教育科目等）'!M40+'単位修得状況確認表（専門教育科目）'!M84","v":0},{"$f":"'単位修得状況確認表（共通教育科目等）'!N40+'単位修得状況確認表（専門教育科目）'!N84","v":0},{"$f":"'単位修得状況確認表（共通教育科目等）'!O40+'単位修得状況確認表（専門教育科目）'!O84","v":0},{"$f":"'単位修得状況確認表（共通教育科目等）'!P40+'単位修得状況確認表（専門教育科目）'!P84","v":0},{"$f":"'単位修得状況確認表（共通教育科目等）'!Q40+'単位修得状況確認表（専門教育科目）'!Q84","v":0},{"$f":"'単位修得状況確認表（共通教育科目等）'!R40+'単位修得状況確認表（専門教育科目）'!R84","v":0},{"$f":"'単位修得状況確認表（共通教育科目等）'!S40+'単位修得状況確認表（専門教育科目）'!S84","v":0},{"$f":"'単位修得状況確認表（共通教育科目等）'!T40+'単位修得状況確認表（専門教育科目）'!T84","v":0},{"$f":"'単位修得状況確認表（共通教育科目等）'!U40+'単位修得状況確認表（専門教育科目）'!U84","v":0},{"$f":"'単位修得状況確認表（共通教育科目等）'!V40+'単位修得状況確認表（専門教育科目）'!V84","v":0},{"$f":"'単位修得状況確認表（共通教育科目等）'!W40+'単位修得状況確認表（専門教育科目）'!W84","v":0},{"$f":"'単位修得状況確認表（共通教育科目等）'!X40+'単位修得状況確認表（専門教育科目）'!X84","v":0},{"$f":"'単位修得状況確認表（共通教育科目等）'!Y40+'単位修得状況確認表（専門教育科目）'!Y84","v":0},{"$f":"'単位修得状況確認表（共通教育科目等）'!Z40+'単位修得状況確認表（専門教育科目）'!Z84","v":0},{"$f":"'単位修得状況確認表（共通教育科目等）'!AA40+'単位修得状況確認表（専門教育科目）'!AA84","v":0},{"$f":"'単位修得状況確認表（共通教育科目等）'!AB40+'単位修得状況確認表（専門教育科目）'!AB84","v":0},{"$f":"'単位修得状況確認表（共通教育科目等）'!AC40+'単位修得状況確認表（専門教育科目）'!AC84","v":0},{"$f":"'単位修得状況確認表（共通教育科目等）'!AD40+'単位修得状況確認表（専門教育科目）'!AD84","v":0},{"$f":"'単位修得状況確認表（共通教育科目等）'!AE40+'単位修得状況確認表（専門教育科目）'!AE84","v":0},{"$f":"'単位修得状況確認表（共通教育科目等）'!AF40+'単位修得状況確認表（専門教育科目）'!AF84","v":0},{"$f":"'単位修得状況確認表（共通教育科目等）'!AG40+'単位修得状況確認表（専門教育科目）'!AG84","v":0},{"$f":"'単位修得状況確認表（共通教育科目等）'!AH40+'単位修得状況確認表（専門教育科目）'!AH84","v":0},{"$f":"'単位修得状況確認表（共通教育科目等）'!AI40+'単位修得状況確認表（専門教育科目）'!AI84","v":0},{"$f":"'単位修得状況確認表（共通教育科目等）'!AJ40+'単位修得状況確認表（専門教育科目）'!AJ84","v":0},{"$f":"'単位修得状況確認表（共通教育科目等）'!AK40+'単位修得状況確認表（専門教育科目）'!AK84","v":0},{"$f":"'単位修得状況確認表（共通教育科目等）'!AL40+'単位修得状況確認表（専門教育科目）'!AL84","v":0},{"$f":"'単位修得状況確認表（共通教育科目等）'!AM40+'単位修得状況確認表（専門教育科目）'!AM84","v":0},{"$f":"SUM(H85,J85,L85,N85,P85,R85,T85,V85,X85,Z85,AB85,AD85,AF85,AH85,AJ85,AL85)","v":0},124,{"$f":"SUM(I85,K85,M85,O85,Q85,S85,U85,W85,Y85,AA85,AC85,AE85,AG85,AI85,AK85,AM85)","v":0}]
[null,null,null,null,null,null,null,null,null,null,null,null,null,null,null,null,null,null,null,null,null,null,null,null,null,null,null,null,null,null,null,null,null,null,null,null,null,null,null,"累積GPA",null,{"$f":"IF(AN85-AN87>0,AP85/(AN85-AN87-'単位修得状況確認表（共通教育科目等）'!AN42+AN88+'単位修得状況確認表（共通教育科目等）'!AN43),\"\")","v":""}]
["【専門教育科目】評価Pの単位数",null,null,null,null,null,null,null,null,null,null,null,null,null,null,null,null,null,null,null,null,null,null,null,null,null,null,null,null,null,null,null,null,null,null,null,null,null,null,{"$f":"SUM(H87:AM87)","v":0}]
["【専門教育科目】不合格（評価F）の単位数",null,null,null,null,null,null,null,null,null,null,null,null,null,null,null,null,null,null,null,null,null,null,null,null,null,null,null,null,null,null,null,null,null,null,null,null,null,null,{"$f":"SUM(H88:AM88)","v":0}]

{"sheet":"累積グラフ","index":6,"n_rows":247,"n_cols":8,"rows_kept":247,"cut":false,"hidden":false,"merged":[[65,2,65,3],[65,4,65,5],[3,2,3,3],[3,4,3,5],[3,6,3,7],[34,2,34,3],[34,4,34,5]]}
[]
[null,"共通教育科目（選択科目）"]
[]
[null,null,"a 実践・判断・精神力",null,"b 知力（人文・社会科学）",null,"c 知力（自然科学）"]
[null,null,"取得単位数","累積取得単位数","取得単位数","累積取得単位数","取得単位数","累積取得単位数"]
[null,"1年前期終了時",{"$f":"'単位修得状況確認表（共通教育科目等）'!H7","v":0},{"$f":"SUM(C$6:C6)","v":0},{"$f":"'単位修得状況確認表（共通教育科目等）'!H8","v":0},{"$f":"SUM(E$6:E6)","v":0},{"$f":"'単位修得状況確認表（共通教育科目等）'!H9","v":0},{"$f":"SUM(G$6:G6)","v":0}]
[null,"1年後期終了時",{"$f":"'単位修得状況確認表（共通教育科目等）'!J7","v":0},{"$f":"SUM(C$6:C7)","v":0},{"$f":"'単位修得状況確認表（共通教育科目等）'!J8","v":0},{"$f":"SUM(E$6:E7)","v":0},{"$f":"'単位修得状況確認表（共通教育科目等）'!J9","v":0},{"$f":"SUM(G$6:G7)","v":0}]
[null,"2年前期終了時",{"$f":"'単位修得状況確認表（共通教育科目等）'!L7","v":0},{"$f":"SUM(C$6:C8)","v":0},{"$f":"'単位修得状況確認表（共通教育科目等）'!L8","v":0},{"$f":"SUM(E$6:E8)","v":0},{"$f":"'単位修得状況確認表（共通教育科目等）'!L9","v":0},{"$f":"SUM(G$6:G8)","v":0}]
[null,"2年後期終了時",{"$f":"'単位修得状況確認表（共通教育科目等）'!N7","v":0},{"$f":"SUM(C$6:C9)","v":0},{"$f":"'単位修得状況確認表（共通教育科目等）'!N8","v":0},{"$f":"SUM(E$6:E9)","v":0},{"$f":"'単位修得状況確認表（共通教育科目等）'!N9","v":0},{"$f":"SUM(G$6:G9)","v":0}]
[null,"３年前期終了時",{"$f":"'単位修得状況確認表（共通教育科目等）'!P7","v":0},{"$f":"SUM(C$6:C10)","v":0},{"$f":"'単位修得状況確認表（共通教育科目等）'!P8","v":0},{"$f":"SUM(E$6:E10)","v":0},{"$f":"'単位修得状況確認表（共通教育科目等）'!P9","v":0},{"$f":"SUM(G$6:G10)","v":0}]
[null,"３年後期終了時",{"$f":"'単位修得状況確認表（共通教育科目等）'!R7","v":0},{"$f":"SUM(C$6:C11)","v":0},{"$f":"'単位修得状況確認表（共通教育科目等）'!R8","v":0},{"$f":"SUM(E$6:E11)","v":0},{"$f":"'単位修得状況確認表（共通教育科目等）'!R9","v":0},{"$f":"SUM(G$6:G11)","v":0}]
[null,"4年前期終了時",{"$f":"'単位修得状況確認表（共通教育科目等）'!T7","v":0},{"$f":"SUM(C$6:C12)","v":0},{"$f":"'単位修得状況確認表（共通教育科目等）'!T8","v":0},{"$f":"SUM(E$6:E12)","v":0},{"$f":"'単位修得状況確認表（共通教育科目等）'!T9","v":0},{"$f":"SUM(G$6:G12)","v":0}]
[null,"4年後期終了時",{"$f":"'単位修得状況確認表（共通教育科目等）'!V7","v":0},{"$f":"SUM(C$6:C13)","v":0},{"$f":"'単位修得状況確認表（共通教育科目等）'!V8","v":0},{"$f":"SUM(E$6:E13)","v":0},{"$f":"'単位修得状況確認表（共通教育科目等）'!V9","v":0},{"$f":"SUM(G$6:G13)","v":0}]
[]
[]
[]
[]
[]
[]
[]
[]
[]
[]
[]
[]
[]
[]
[]
[]
[]
[]
[]
[null,"共通教育科目（選択必修科目）"]
[]
[null,null,"d 身体力",null,"e コミュニケーション力"]
[null,null,"取得単位数","累積取得単位数","取得単位数","累積取得単位数"]
[null,"1年前期終了時",{"$f":"SUM('単位修得状況確認表（共通教育科目等）'!H12:H13)","v":0},{"$f":"SUM(C$37:C37)","v":0},{"$f":"SUM('単位修得状況確認表（共通教育科目等）'!H14:H16)","v":0},{"$f":"SUM(E$37:E37)","v":0}]
[null,"1年後期終了時",{"$f":"SUM('単位修得状況確認表（共通教育科目等）'!J12:J13)","v":0},{"$f":"SUM(C$37:C38)","v":0},{"$f":"SUM('単位修得状況確認表（共通教育科目等）'!J14:J16)","v":0},{"$f":"SUM(E$37:E38)","v":0}]
[null,"2年前期終了時",{"$f":"SUM('単位修得状況確認表（共通教育科目等）'!L12:L13)","v":0},{"$f":"SUM(C$37:C39)","v":0},{"$f":"SUM('単位修得状況確認表（共通教育科目等）'!L14:L16)","v":0},{"$f":"SUM(E$37:E39)","v":0}]
[null,"2年後期終了時",{"$f":"SUM('単位修得状況確認表（共通教育科目等）'!N12:N13)","v":0},{"$f":"SUM(C$37:C40)","v":0},{"$f":"SUM('単位修得状況確認表（共通教育科目等）'!N14:N16)","v":0},{"$f":"SUM(E$37:E40)","v":0}]
[null,"３年前期終了時",{"$f":"SUM('単位修得状況確認表（共通教育科目等）'!P12:P13)","v":0},{"$f":"SUM(C$37:C41)","v":0},{"$f":"SUM('単位修得状況確認表（共通教育科目等）'!P14:P16)","v":0},{"$f":"SUM(E$37:E41)","v":0}]
[null,"３年後期終了時",{"$f":"SUM('単位修得状況確認表（共通教育科目等）'!R12:R13)","v":0},{"$f":"SUM(C$37:C42)","v":0},{"$f":"SUM('単位修得状況確認表（共通教育科目等）'!R14:R16)","v":0},{"$f":"SUM(E$37:E42)","v":0}]
[null,"4年前期終了時",{"$f":"SUM('単位修得状況確認表（共通教育科目等）'!T12:T13)","v":0},{"$f":"SUM(C$37:C43)","v":0},{"$f":"SUM('単位修得状況確認表（共通教育科目等）'!T14:T16)","v":0},{"$f":"SUM(E$37:E43)","v":0}]
[null,"4年後期終了時",{"$f":"SUM('単位修得状況確認表（共通教育科目等）'!V12:V13)","v":0},{"$f":"SUM(C$37:C44)","v":0},{"$f":"SUM('単位修得状況確認表（共通教育科目等）'!V14:V16)","v":0},{"$f":"SUM(E$37:E44)","v":0}]
[]
[]
[]
[]
[]
[]
[]
[]
[]
[]
[]
[]
[]
[]
[]
[]
[]
[]
[]
[null,"基礎教育科目"]
[]
[null,null,"単独必修科目",null,"選択必修科目"]
[null,null,"取得単位数","累積取得単位数","取得単位数","累積取得単位数"]
[null,"1年前期終了時",{"$f":"'単位修得状況確認表（共通教育科目等）'!H31","v":0},{"$f":"SUM(C$68:C68)","v":0},{"$f":"'単位修得状況確認表（共通教育科目等）'!H37","v":0},{"$f":"SUM(E$68:E68)","v":0}]
[null,"1年後期終了時",{"$f":"'単位修得状況確認表（共通教育科目等）'!J31","v":0},{"$f":"SUM(C$68:C69)","v":0},{"$f":"'単位修得状況確認表（共通教育科目等）'!J37","v":0},{"$f":"SUM(E$68:E69)","v":0}]
[null,"2年前期終了時",{"$f":"'単位修得状況確認表（共通教育科目等）'!L31","v":0},{"$f":"SUM(C$68:C70)","v":0},{"$f":"'単位修得状況確認表（共通教育科目等）'!L37","v":0},{"$f":"SUM(E$68:E70)","v":0}]
[null,"2年後期終了時",{"$f":"'単位修得状況確認表（共通教育科目等）'!N31","v":0},{"$f":"SUM(C$68:C71)","v":0},{"$f":"'単位修得状況確認表（共通教育科目等）'!N37","v":0},{"$f":"SUM(E$68:E71)","v":0}]
[null,"３年前期終了時",{"$f":"'単位修得状況確認表（共通教育科目等）'!P31","v":0},{"$f":"SUM(C$68:C72)","v":0},{"$f":"'単位修得状況確認表（共通教育科目等）'!P37","v":0},{"$f":"SUM(E$68:E72)","v":0}]
[null,"３年後期終了時",{"$f":"'単位修得状況確認表（共通教育科目等）'!R31","v":0},{"$f":"SUM(C$68:C73)","v":0},{"$f":"'単位修得状況確認表（共通教育科目等）'!R37","v":0},{"$f":"SUM(E$68:E73)","v":0}]
[null,"4年前期終了時",{"$f":"'単位修得状況確認表（共通教育科目等）'!T31","v":0},{"$f":"SUM(C$68:C74)","v":0},{"$f":"'単位修得状況確認表（共通教育科目等）'!T37","v":0},{"$f":"SUM(E$68:E74)","v":0}]
[null,"4年後期終了時",{"$f":"'単位修得状況確認表（共通教育科目等）'!V31","v":0},{"$f":"SUM(C$68:C75)","v":0},{"$f":"'単位修得状況確認表（共通教育科目等）'!V37","v":0},{"$f":"SUM(E$68:E75)","v":0}]
[]
[]
[]
[]
[]
[]
[]
[]
[]
[]
[]
[]
[]
[]
[]
[]
[]
[]
[]
[]
[]
[null,"必修科目"]
[]
[null,null,"取得単位数","累積取得単位数"]
[null,"1年前期終了時",{"$f":"'単位修得状況確認表（専門教育科目）'!H25","v":0},{"$f":"SUM(C$100:C100)","v":0}]
[null,"1年後期終了時",{"$f":"'単位修得状況確認表（専門教育科目）'!J25","v":0},{"$f":"SUM(C$100:C101)","v":0}]
[null,"2年前期終了時",{"$f":"'単位修得状況確認表（専門教育科目）'!L25","v":0},{"$f":"SUM(C$100:C102)","v":0}]
[null,"2年後期終了時",{"$f":"'単位修得状況確認表（専門教育科目）'!N25","v":0},{"$f":"SUM(C$100:C103)","v":0}]
[null,"３年前期終了時",{"$f":"'単位修得状況確認表（専門教育科目）'!P25","v":0},{"$f":"SUM(C$100:C104)","v":0}]
[null,"３年後期終了時",{"$f":"'単位修得状況確認表（専門教育科目）'!R25","v":0},{"$f":"SUM(C$100:C105)","v":0}]
[null,"4年前期終了時",{"$f":"'単位修得状況確認表（専門教育科目）'!T25","v":0},{"$f":"SUM(C$100:C106)","v":0}]
[null,"4年後期終了時",{"$f":"'単位修得状況確認表（専門教育科目）'!V25","v":0},{"$f":"SUM(C$100:C107)","v":0}]
[]
[]
[]
[]
[]
[]
[]
[null,"情報基礎科目群（選択科目A群）"]
[]
[null,null,"取得単位数","累積取得単位数"]
[null,"1年前期終了時",{"$f":"'単位修得状況確認表（専門教育科目）'!H34","v":0},{"$f":"SUM(C$118:C118)","v":0}]
[null,"1年後期終了時",{"$f":"'単位修得状況確認表（専門教育科目）'!J34","v":0},{"$f":"SUM(C$118:C119)","v":0}]
[null,"2年前期終了時",{"$f":"'単位修得状況確認表（専門教育科目）'!L34","v":0},{"$f":"SUM(C$118:C120)","v":0}]
[null,"2年後期終了時",{"$f":"'単位修得状況確認表（専門教育科目）'!N34","v":0},{"$f":"SUM(C$118:C121)","v":0}]
[null,"３年前期終了時",{"$f":"'単位修得状況確認表（専門教育科目）'!P34","v":0},{"$f":"SUM(C$118:C122)","v":0}]
[null,"３年後期終了時",{"$f":"'単位修得状況確認表（専門教育科目）'!R34","v":0},{"$f":"SUM(C$118:C123)","v":0}]
[null,"4年前期終了時",{"$f":"'単位修得状況確認表（専門教育科目）'!T34","v":0},{"$f":"SUM(C$118:C124)","v":0}]
[null,"4年後期終了時",{"$f":"'単位修得状況確認表（専門教育科目）'!V34","v":0},{"$f":"SUM(C$118:C125)","v":0}]
[]
[]
[]
[]
[]
[]
[]
[null,"ソフトウェアコア科目群（選択科目B群）"]
[]
[null,null,"取得単位数","累積取得単位数"]
[null,"1年前期終了時",{"$f":"'単位修得状況確認表（専門教育科目）'!H43","v":0},{"$f":"SUM(C$136:C136)","v":0}]
[null,"1年後期終了時",{"$f":"'単位修得状況確認表（専門教育科目）'!J43","v":0},{"$f":"SUM(C$136:C137)","v":0}]
[null,"2年前期終了時",{"$f":"'単位修得状況確認表（専門教育科目）'!L43","v":0},{"$f":"SUM(C$136:C138)","v":0}]
[null,"2年後期終了時",{"$f":"'単位修得状況確認表（専門教育科目）'!N43","v":0},{"$f":"SUM(C$136:C139)","v":0}]
[null,"３年前期終了時",{"$f":"'単位修得状況確認表（専門教育科目）'!P43","v":0},{"$f":"SUM(C$136:C140)","v":0}]
[null,"３年後期終了時",{"$f":"'単位修得状況確認表（専門教育科目）'!R43","v":0},{"$f":"SUM(C$136:C141)","v":0}]
[null,"4年前期終了時",{"$f":"'単位修得状況確認表（専門教育科目）'!T43","v":0},{"$f":"SUM(C$136:C142)","v":0}]
[null,"4年後期終了時",{"$f":"'単位修得状況確認表（専門教育科目）'!V43","v":0},{"$f":"SUM(C$136:C143)","v":0}]
[]
[]
[]
[]
[]
[]
[]
[null,"情報システムコア科目群（選択科目C群）"]
[]
[null,null,"取得単位数","累積取得単位数"]
[null,"1年前期終了時",{"$f":"'単位修得状況確認表（専門教育科目）'!H55","v":0},{"$f":"SUM(C$154:C154)","v":0}]
[null,"1年後期終了時",{"$f":"'単位修得状況確認表（専門教育科目）'!J55","v":0},{"$f":"SUM(C$154:C155)","v":0}]
[null,"2年前期終了時",{"$f":"'単位修得状況確認表（専門教育科目）'!L55","v":0},{"$f":"SUM(C$154:C156)","v":0}]
[null,"2年後期終了時",{"$f":"'単位修得状況確認表（専門教育科目）'!N55","v":0},{"$f":"SUM(C$154:C157)","v":0}]
[null,"３年前期終了時",{"$f":"'単位修得状況確認表（専門教育科目）'!P55","v":0},{"$f":"SUM(C$154:C158)","v":0}]
[null,"３年後期終了時",{"$f":"'単位修得状況確認表（専門教育科目）'!R55","v":0},{"$f":"SUM(C$154:C159)","v":0}]
[null,"4年前期終了時",{"$f":"'単位修得状況確認表（専門教育科目）'!T55","v":0},{"$f":"SUM(C$154:C160)","v":0}]
[null,"4年後期終了時",{"$f":"'単位修得状況確認表（専門教育科目）'!V55","v":0},{"$f":"SUM(C$154:C161)","v":0}]
[]
[]
[]
[]
[]
[]
[]
[null,"情報生体システム科目群（選択科目D群）"]
[]
[null,null,"取得単位数","累積取得単位数"]
[null,"1年前期終了時",{"$f":"'単位修得状況確認表（専門教育科目）'!H67","v":0},{"$f":"SUM(C$172:C172)","v":0}]
[null,"1年後期終了時",{"$f":"'単位修得状況確認表（専門教育科目）'!J67","v":0},{"$f":"SUM(C$172:C173)","v":0}]
[null,"2年前期終了時",{"$f":"'単位修得状況確認表（専門教育科目）'!L67","v":0},{"$f":"SUM(C$172:C174)","v":0}]
[null,"2年後期終了時",{"$f":"'単位修得状況確認表（専門教育科目）'!N67","v":0},{"$f":"SUM(C$172:C175)","v":0}]
[null,"３年前期終了時",{"$f":"'単位修得状況確認表（専門教育科目）'!P67","v":0},{"$f":"SUM(C$172:C176)","v":0}]
[null,"３年後期終了時",{"$f":"'単位修得状況確認表（専門教育科目）'!R67","v":0},{"$f":"SUM(C$172:C177)","v":0}]
[null,"4年前期終了時",{"$f":"'単位修得状況確認表（専門教育科目）'!T67","v":0},{"$f":"SUM(C$172:C178)","v":0}]
[null,"4年後期終了時",{"$f":"'単位修得状況確認表（専門教育科目）'!V67","v":0},{"$f":"SUM(C$172:C179)","v":0}]
[]
[]
[]
[]
[]
[]
[]
[null,"工学基礎・教養科目群（選択科目E群）"]
[]
[null,null,"取得単位数","累積取得単位数"]
[null,"1年前期終了時",{"$f":"'単位修得状況確認表（専門教育科目）'!H82","v":0},{"$f":"SUM(C$190:C190)","v":0}]
[null,"1年後期終了時",{"$f":"'単位修得状況確認表（専門教育科目）'!J82","v":0},{"$f":"SUM(C$190:C191)","v":0}]
[null,"2年前期終了時",{"$f":"'単位修得状況確認表（専門教育科目）'!L82","v":0},{"$f":"SUM(C$190:C192)","v":0}]
[null,"2年後期終了時",{"$f":"'単位修得状況確認表（専門教育科目）'!N82","v":0},{"$f":"SUM(C$190:C193)","v":0}]
[null,"３年前期終了時",{"$f":"'単位修得状況確認表（専門教育科目）'!P82","v":0},{"$f":"SUM(C$190:C194)","v":0}]
[null,"３年後期終了時",{"$f":"'単位修得状況確認表（専門教育科目）'!R82","v":0},{"$f":"SUM(C$190:C195)","v":0}]
[null,"4年前期終了時",{"$f":"'単位修得状況確認表（専門教育科目）'!T82","v":0},{"$f":"SUM(C$190:C196)","v":0}]
[null,"4年後期終了時",{"$f":"'単位修得状況確認表（専門教育科目）'!V82","v":0},{"$f":"SUM(C$190:C197)","v":0}]
[]
[]
[]
[]
[]
[]
[]
[null,"累積単位数"]
[]
[null,null,"取得単位数","累積取得単位数"]
[null,"1年前期終了時",{"$f":"SUM(C6,E6,G6,C37,E37,C68,E68,C100,C118,C136,C154,C172,C190)","v":0},{"$f":"SUM(C$208:C208)","v":0}]
[null,"1年後期終了時",0,{"$f":"SUM(C$208:C209)","v":0}]
[null,"2年前期終了時",0,{"$f":"SUM(C$208:C210)","v":0}]
[null,"2年後期終了時",0,{"$f":"SUM(C$208:C211)","v":0}]
[null,"３年前期終了時",0,{"$f":"SUM(C$208:C212)","v":0}]
[null,"３年後期終了時",0,{"$f":"SUM(C$208:C213)","v":0}]
[null,"4年前期終了時",0,{"$f":"SUM(C$208:C214)","v":0}]
[null,"4年後期終了時",0,{"$f":"SUM(C$208:C215)","v":0}]
[]
[]
[]
[]
[]
[]
[]
[]
[]
[]
[]
[]
[]
[]
[]
[]
[]
[]
[]
[]
[]
[null,"GPA"]
[]
[null,null,"累積GP","累積GPA","GPA累積単位数","累積P","累積F"]
[null,"1年前期終了時",{"$f":"'単位修得状況確認表（共通教育科目等）'!I18+'単位修得状況確認表（共通教育科目等）'!I38+'単位修得状況確認表（専門教育科目）'!I25+'単位修得状況確認表（専門教育科目）'!I34+'単位修得状況確認表（専門教育科目）'!I43+'単位修得状況確認表（専門教育科目）'!I55+'単位修得状況確認表（専門教育科目）'!I67+'単位修得状況確認表（専門教育科目）'!I82","v":0},{"$f":"IF(E240=0,\"\",C240/E240)","v":""},{"$f":"D208-F240+G240","v":0},{"$f":"SUM('単位修得状況確認表（共通教育科目等）'!H42,'単位修得状況確認表（専門教育科目）'!H87)","v":0},{"$f":"SUM('単位修得状況確認表（共通教育科目等）'!H43,'単位修得状況確認表（専門教育科目）'!H88)","v":0}]
[null,"1年後期終了時",{"$f":"C240+'単位修得状況確認表（共通教育科目等）'!K18+'単位修得状況確認表（共通教育科目等）'!K38+'単位修得状況確認表（専門教育科目）'!K25+'単位修得状況確認表（専門教育科目）'!K34+'単位修得状況確認表（専門教育科目）'!K43+'単位修得状況確認表（専門教育科目）'!K55+'単位修得状況確認表（専門教育科目）'!K67+'単位修得状況確認表（専門教育科目）'!K82","v":0},"",{"$f":"D209-F241+G241","v":0},{"$f":"SUM(F240,'単位修得状況確認表（共通教育科目等）'!J42,'単位修得状況確認表（専門教育科目）'!J87)","v":0},{"$f":"SUM(G240,'単位修得状況確認表（共通教育科目等）'!J43,'単位修得状況確認表（専門教育科目）'!J88)","v":0}]
[null,"2年前期終了時",{"$f":"C241+'単位修得状況確認表（共通教育科目等）'!M18+'単位修得状況確認表（共通教育科目等）'!M38+'単位修得状況確認表（専門教育科目）'!M25+'単位修得状況確認表（専門教育科目）'!M34+'単位修得状況確認表（専門教育科目）'!M43+'単位修得状況確認表（専門教育科目）'!M55+'単位修得状況確認表（専門教育科目）'!M67+'単位修得状況確認表（専門教育科目）'!M82","v":0},"",{"$f":"D210-F242+G242","v":0},{"$f":"SUM(F241,'単位修得状況確認表（共通教育科目等）'!L42,'単位修得状況確認表（専門教育科目）'!L87)","v":0},{"$f":"SUM(G241,'単位修得状況確認表（共通教育科目等）'!L43,'単位修得状況確認表（専門教育科目）'!L88)","v":0}]
[null,"2年後期終了時",{"$f":"C242+'単位修得状況確認表（共通教育科目等）'!O18+'単位修得状況確認表（共通教育科目等）'!O38+'単位修得状況確認表（専門教育科目）'!O25+'単位修得状況確認表（専門教育科目）'!O34+'単位修得状況確認表（専門教育科目）'!O43+'単位修得状況確認表（専門教育科目）'!O55+'単位修得状況確認表（専門教育科目）'!O67+'単位修得状況確認表（専門教育科目）'!O82","v":0},"",0,{"$f":"SUM(F242,'単位修得状況確認表（共通教育科目等）'!N42,'単位修得状況確認表（専門教育科目）'!N87)","v":0},{"$f":"SUM(G242,'単位修得状況確認表（共通教育科目等）'!N43,'単位修得状況確認表（専門教育科目）'!N88)","v":0}]
[null,"３年前期終了時",{"$f":"C243+'単位修得状況確認表（共通教育科目等）'!Q18+'単位修得状況確認表（共通教育科目等）'!Q38+'単位修得状況確認表（専門教育科目）'!Q25+'単位修得状況確認表（専門教育科目）'!Q34+'単位修得状況確認表（専門教育科目）'!Q43+'単位修得状況確認表（専門教育科目）'!Q55+'単位修得状況確認表（専門教育科目）'!Q67+'単位修得状況確認表（専門教育科目）'!Q82","v":0},"",0,{"$f":"SUM(F243,'単位修得状況確認表（共通教育科目等）'!P42,'単位修得状況確認表（専門教育科目）'!P87)","v":0},{"$f":"SUM(G243,'単位修得状況確認表（共通教育科目等）'!P43,'単位修得状況確認表（専門教育科目）'!P88)","v":0}]
[null,"３年後期終了時",{"$f":"C244+'単位修得状況確認表（共通教育科目等）'!S18+'単位修得状況確認表（共通教育科目等）'!S38+'単位修得状況確認表（専門教育科目）'!S25+'単位修得状況確認表（専門教育科目）'!S34+'単位修得状況確認表（専門教育科目）'!S43+'単位修得状況確認表（専門教育科目）'!S55+'単位修得状況確認表（専門教育科目）'!S67+'単位修得状況確認表（専門教育科目）'!S82","v":0},"",0,{"$f":"SUM(F244,'単位修得状況確認表（共通教育科目等）'!R42,'単位修得状況確認表（専門教育科目）'!R87)","v":0},{"$f":"SUM(G244,'単位修得状況確認表（共通教育科目等）'!R43,'単位修得状況確認表（専門教育科目）'!R88)","v":0}]
[null,"4年前期終了時",{"$f":"C245+'単位修得状況確認表（共通教育科目等）'!T18+'単位修得状況確認表（共通教育科目等）'!T38+'単位修得状況確認表（専門教育科目）'!T25+'単位修得状況確認表（専門教育科目）'!T34+'単位修得状況確認表（専門教育科目）'!T43+'単位修得状況確認表（専門教育科目）'!T55+'単位修得状況確認表（専門教育科目）'!T67+'単位修得状況確認表（専門教育科目）'!T82","v":0},"",0,{"$f":"SUM(F245,'単位修得状況確認表（共通教育科目等）'!T42,'単位修得状況確認表（専門教育科目）'!T87)","v":0},{"$f":"SUM(G245,'単位修得状況確認表（共通教育科目等）'!T43,'単位修得状況確認表（専門教育科目）'!T88)","v":0}]
[null,"4年後期終了時",{"$f":"C246+'単位修得状況確認表（共通教育科目等）'!W18+'単位修得状況確認表（共通教育科目等）'!W38+'単位修得状況確認表（専門教育科目）'!W25+'単位修得状況確認表（専門教育科目）'!W34+'単位修得状況確認表（専門教育科目）'!W43+'単位修得状況確認表（専門教育科目）'!W55+'単位修得状況確認表（専門教育科目）'!W67+'単位修得状況確認表（専門教育科目）'!W82","v":0},"",0,{"$f":"SUM(F246,'単位修得状況確認表（共通教育科目等）'!V42,'単位修得状況確認表（専門教育科目）'!V87)","v":0},{"$f":"SUM(G246,'単位修得状況確認表（共通教育科目等）'!V43,'単位修得状況確認表（専門教育科目）'!V88)","v":0}]